bitfinex/quotes_ETHUSD_20250324
["timestamp","ask_amount","ask_price","bid_price","bid_amount"]
[1742820341465,3.0,2087.1,2087.0,0.68240259]
[1742820343741,4.79066,2087.4,2087.0,6.09643585]
[1742820344059,4.79066,2087.4,2087.1,4.681]
[1742820344240,9.58147,2087.4,2087.2,0.68040854]
[1742820345779,4.79066,2087.4,2087.2,0.68040854]
[1742820346500,9.58149,2087.4,2087.2,0.68040854]
[1742820346790,4.79087,2087.3,2087.2,0.68040854]
[1742820346993,4.79066,2087.4,2087.2,0.68040854]
[1742820347188,9.5815,2087.4,2087.2,0.68040854]
[1742820347347,4.79087,2087.3,2087.2,0.68040854]
[1742820348290,7.79074,2087.4,2087.2,0.68040854]
[1742820350759,12.58156,2087.4,2087.2,0.68040854]
[1742820351643,4.79087,2087.3,2087.2,0.68040854]
[1742820352779,7.79067,2087.4,2087.2,0.68040854]
[1742820352978,3.0,2087.4,2087.3,4.79087]
[1742820353184,6.09,2087.5,2087.3,4.79075]
[1742820353367,6.09,2087.5,2087.3,5.47050097]
[1742820353982,6.09,2087.5,2087.3,0.67975097]
[1742820354280,6.09,2087.5,2087.4,0.65483062]
[1742820354485,6.09,2087.5,2087.4,1.33429163]
[1742820355987,10.88027,2087.6,2087.4,1.33429163]
[1742820356155,10.88027,2087.6,2087.5,4.678]
[1742820356565,10.88027,2087.6,2087.5,5.35717108]
[1742820358188,6.09,2087.6,2087.5,5.35717108]
[1742820358555,6.09,2087.6,2087.5,6.43744625]
[1742820358884,10.88018,2087.6,2087.5,6.43744625]
[1742820360082,6.09,2087.6,2087.5,6.43744625]
[1742820360484,6.09,2087.7,2087.5,6.43744625]
[1742820360654,10.88003,2087.7,2087.5,6.43744625]
[1742820360856,10.88003,2087.7,2087.6,1.20503262]
[1742820361054,10.88003,2087.7,2087.6,1.88156736]
[1742820361662,10.88003,2087.7,2087.6,0.67653474]
[1742820361867,11.69923,2087.7,2087.6,0.67653474]
[1742820362887,14.69923,2087.7,2087.6,0.67653474]
[1742820363260,4.79041,2087.5,2087.4,4.677]
[1742820363463,4.79041,2087.5,2087.4,5.35411458]
[1742820366090,4.79041,2087.5,2087.4,4.85411458]
[1742820368306,7.79019,2087.6,2087.4,4.85411458]
[1742820368476,4.79041,2087.5,2087.4,4.85411458]
[1742820373273,4.79041,2087.5,2087.4,5.82867845]
[1742820374205,9.73939,2087.5,2087.4,1.65167845]
[1742820374376,10.53689,2087.5,2087.4,1.65167845]
[1742820376328,3.0,2087.5,2087.4,0.97456387]
[1742820376522,7.79041,2087.5,2087.3,0.8115]
[1742820376726,3.0,2087.4,2087.3,0.8115]
[1742820377027,4.7905,2087.5,2087.3,0.8115]
[1742820379604,4.7905,2087.5,2087.1,9.46617]
[1742820379811,4.7905,2087.5,2087.1,11.642641]
[1742820380010,4.7905,2087.5,2087.2,5.46961079]
[1742820381310,7.79026,2087.6,2087.2,5.46953079]
[1742820382527,7.79026,2087.6,2087.3,4.79083]
[1742820383040,7.79026,2087.6,2087.2,5.46961079]
[1742820383347,4.79047,2087.5,2087.2,0.67857079]
[1742820383518,4.7908,2087.4,2087.2,0.67857079]
[1742820384956,4.7908,2087.4,2087.2,5.35257079]
[1742820385638,4.7908,2087.4,2087.2,0.67857079]
[1742820386357,4.79044,2087.5,2087.2,0.67857079]
[1742820386652,4.79044,2087.5,2087.2,1.45917079]
[1742820387637,9.58101,2087.5,2087.2,1.45917079]
[1742820387941,4.79044,2087.5,2087.2,0.67857079]
[1742820388434,9.58103,2087.5,2087.2,0.67857079]
[1742820388848,4.79069,2087.4,2087.2,0.67857079]
[1742820389017,4.79087,2087.3,2087.2,0.67857079]
[1742820390421,5.55759,2087.4,2087.2,0.67857079]
[1742820390422,4.79069,2087.4,2087.2,0.67857079]
[1742820391152,9.5815,2087.4,2087.2,0.67857079]
[1742820391342,3.8184,2087.6,2087.2,1.48347079]
[1742820391646,4.79042,2087.5,2087.2,6.90184687]
[1742820391846,4.79042,2087.5,2087.3,4.673]
[1742820393017,4.79064,2087.4,2087.3,4.673]
[1742820393216,4.79049,2087.5,2087.3,4.673]
[1742820396350,8.60861,2087.6,2087.3,4.673]
[1742820396550,13.39896,2087.6,2087.3,4.673]
[1742820396722,4.79043,2087.5,2087.3,4.673]
[1742820396922,3.0,2087.6,2087.4,0.8206]
[1742820397142,7.79032,2087.6,2087.3,4.673]
[1742820397320,4.79042,2087.5,2087.3,4.673]
[1742820399952,4.79064,2087.4,2087.3,4.673]
[1742820401023,4.79087,2087.3,2087.2,0.67857079]
[1742820402050,13.88087,2087.3,2087.2,0.67857079]
[1742820402221,14.71217,2087.3,2087.2,0.67857079]
[1742820402418,15.26217,2087.3,2087.2,0.67857079]
[1742820404455,15.61868237,2087.3,2087.2,0.67857079]
[1742820404623,18.26446821,2087.3,2087.2,0.67857079]
[1742820405752,25.26719067,2087.3,2086.2,0.94759263]
[1742820405956,25.26719067,2087.3,2086.1,30.12362]
[1742820405957,4.79295,2086.4,2086.3,4.672]
[1742820406177,4.79338,2086.3,2086.0,5.4532]
[1742820406461,4.79345,2086.2,2086.0,4.672]
[1742820407326,4.79322,2086.3,2086.0,4.672]
[1742820407648,3.0,2086.4,2086.1,4.79341]
[1742820407956,6.09,2086.5,2086.2,5.4532]
[1742820407957,10.88272,2086.5,2086.2,5.4532]
[1742820409325,15.67565,2086.5,2086.2,5.4532]
[1742820409529,4.79298,2086.4,2086.2,5.4532]
[1742820409727,10.88276,2086.5,2086.2,5.4532]
[1742820411760,4.79276,2086.5,2086.2,5.4532]
[1742820411958,3.0,2086.5,2086.2,5.4532]
[1742820412131,10.88254,2086.6,2086.2,11.750595]
[1742820412333,6.09,2086.6,2086.3,4.79296]
[1742820412545,6.09,2086.6,2086.3,9.586]
[1742820412870,6.09,2086.6,2086.5,0.7664]
[1742820414677,6.09,2086.6,2086.5,5.55911]
[1742820415680,6.09,2086.6,2086.5,0.7664]
[1742820417571,4.79202,2086.8,2086.5,0.7664]
[1742820417875,4.79202,2086.8,2086.6,4.672]
[1742820418542,3.0,2086.8,2086.6,4.672]
[1742820418943,3.0,2086.9,2086.6,9.4644]
[1742820419144,6.09,2087.0,2086.8,0.8094]
[1742820419341,6.09,2087.0,2086.8,5.60132]
[1742820419856,6.09,2087.0,2086.8,5.60139]
[1742820420259,6.09,2087.0,2086.8,0.8094]
[1742820422770,6.09,2087.0,2086.8,5.60123]
[1742820423550,4.79134,2087.1,2086.8,5.60123]
[1742820423978,10.88118,2087.2,2086.8,5.60123]
[1742820424149,15.67245,2087.2,2086.8,5.60123]
[1742820424351,4.79134,2087.1,2086.8,5.60123]
[1742820424972,10.88118,2087.2,2086.8,5.60123]
[1742820425566,10.88118,2087.2,2086.9,4.79174]
[1742820425768,6.09,2087.2,2087.0,9.46237]
[1742820425962,6.09,2087.2,2087.0,4.671]
[1742820426889,10.88123,2087.2,2087.0,4.671]
[1742820427191,17.1864736,2087.2,2087.0,4.671]
[1742820427556,12.3951636,2087.2,2087.0,4.671]
[1742820430184,13.1791636,2087.2,2087.0,4.671]
[1742820430357,13.1790736,2087.2,2087.0,4.671]
[1742820430559,11.66514,2087.2,2087.0,4.671]
[1742820430792,10.88114,2087.2,2087.0,4.671]
[1742820431990,15.67241,2087.2,2087.0,4.671]
[1742820432294,10.88114,2087.2,2087.0,4.671]
[1742820432460,4.79133,2087.1,2087.0,4.671]
[1742820432663,10.88117,2087.2,2087.0,4.671]
[1742820433161,16.99613779,2087.2,2087.0,4.671]
[1742820433376,4.79133,2087.1,2087.0,4.671]
[1742820433760,12.20481779,2087.2,2087.0,4.671]
[1742820433761,16.99608779,2087.2,2087.0,4.671]
[1742820435290,12.20481779,2087.2,2087.0,4.671]
[1742820435670,4.79133,2087.1,2087.0,4.671]
[1742820437163,12.20475779,2087.2,2087.0,4.671]
[1742820437385,10.88111,2087.2,2087.0,4.671]
[1742820438665,6.09,2087.2,2087.0,4.671]
[1742820439369,10.88111,2087.2,2087.0,4.671]
[1742820439599,6.09,2087.2,2087.0,4.671]
[1742820439895,10.88116,2087.2,2087.0,4.671]
[1742820442325,4.79133,2087.1,2087.0,4.671]
[1742820442462,0.7844,2086.7,2086.3,4.668]
[1742820442662,4.79279,2086.5,2086.1,4.79352]
[1742820442871,4.79294,2086.4,2086.0,5.6001]
[1742820443089,9.58607,2086.4,2086.1,4.668]
[1742820443288,5.58014,2086.4,2086.1,4.668]
[1742820443757,4.79326,2086.3,2086.1,4.668]
[1742820444488,5.58014,2086.4,2086.1,4.668]
[1742820444809,10.37327,2086.4,2086.1,4.668]
[1742820444967,4.79317,2086.3,2086.1,4.668]
[1742820447286,5.830503,2086.3,2086.1,4.668]
[1742820448190,4.7934,2086.2,2086.1,4.668]
[1742820448384,4.79371,2086.1,2086.0,4.668]
[1742820448876,4.79403,2086.0,2085.9,4.668]
[1742820450002,4.79403,2086.0,2085.8,25.334]
[1742820450205,8.61059,2086.1,2085.9,4.668]
[1742820450525,4.79386,2086.0,2085.9,4.668]
[1742820450894,5.61058,2086.1,2085.9,4.668]
[1742820451094,10.40439,2086.1,2085.9,4.668]
[1742820451295,4.79386,2086.0,2085.9,4.668]
[1742820453705,2.0531723,2086.1,2085.9,4.668]
[1742820453916,4.79364,2086.1,2085.9,4.668]
[1742820455597,5.60474,2086.1,2085.9,4.668]
[1742820455798,4.79386,2086.0,2085.9,4.668]
[1742820456139,4.7942,2085.9,2085.8,4.668]
[1742820457225,4.7942,2085.9,2085.4,0.8032]
[1742820457401,4.79489,2085.6,2085.5,4.668]
[1742820457798,4.79505,2085.5,2085.4,4.668]
[1742820458539,4.79485,2085.6,2085.4,4.668]
[1742820458764,9.58979,2085.6,2085.4,4.668]
[1742820458945,4.79485,2085.6,2085.4,4.668]
[1742820459128,9.58982,2085.6,2085.4,4.668]
[1742820459326,4.79485,2085.6,2085.4,4.668]
[1742820461344,5.962065,2085.6,2085.4,4.668]
[1742820462941,10.757005,2085.6,2085.4,4.668]
[1742820464442,4.79501,2085.5,2085.4,4.668]
[1742820465949,7.79462,2085.7,2085.4,4.668]
[1742820466136,7.79462,2085.7,2085.4,5.433]
[1742820466916,4.79493,2085.6,2085.4,5.433]
[1742820467116,4.79493,2085.6,2085.4,4.668]
[1742820469249,9.58988,2085.6,2085.4,4.668]
[1742820469429,9.58986,2085.6,2085.4,4.668]
[1742820470149,9.58986,2085.6,2085.5,0.53885173]
[1742820470351,4.79493,2085.6,2085.5,0.53885173]
[1742820474371,10.53411,2085.6,2085.5,0.53885173]
[1742820476262,16.62411,2085.6,2085.5,0.53885173]
[1742820482259,17.17411,2085.6,2085.5,1.73e-06]
[1742820483852,26.469219,2085.6,2085.5,1.73e-06]
[1742820484361,17.17411,2085.6,2085.5,1.73e-06]
[1742820485425,23.417363,2085.6,2085.5,1.73e-06]
[1742820486262,23.417363,2085.6,2084.3,2.69962352]
[1742820486263,4.79736,2084.5,2084.3,2.69962352]
[1742820486438,0.7547,2084.9,2084.3,2.96958587]
[1742820486643,4.79717,2084.6,2084.3,2.96958587]
[1742820487570,4.79732,2084.5,2084.3,2.96958587]
[1742820488565,4.79732,2084.5,2084.3,7.63658587]
[1742820489865,4.79732,2084.5,2084.3,2.18368587]
[1742820490046,4.79754,2084.4,2084.3,2.18368587]
[1742820491349,4.79732,2084.5,2084.3,1.91372352]
[1742820491779,9.59484,2084.5,2084.3,1.91372352]
[1742820492076,4.79732,2084.5,2084.3,1.91372352]
[1742820492277,4.79754,2084.4,2084.3,1.91372352]
[1742820493792,4.79754,2084.4,2084.2,4.668]
[1742820494377,9.59526,2084.4,2084.2,4.668]
[1742820494578,4.79754,2084.4,2084.2,4.668]
[1742820494788,4.79732,2084.5,2084.2,4.668]
[1742820494987,3.0,2084.6,2084.2,9.46599]
[1742820495191,3.0,2084.6,2084.3,0.7993]
[1742820495803,3.0,2084.6,2084.3,5.59689]
[1742820496168,7.79708,2084.6,2084.3,0.7993]
[1742820496992,3.0,2084.6,2084.3,2.305652]
[1742820497190,3.0,2084.6,2084.3,7.103282]
[1742820498096,3.0,2084.6,2084.3,11.900892]
[1742820498696,3.0,2084.6,2084.3,7.103262]
[1742820499293,7.79647,2084.9,2084.4,5.58762]
[1742820499594,3.0,2084.8,2084.5,4.79721]
[1742820499781,3.0,2084.8,2084.6,4.667]
[1742820500400,7.79662,2084.8,2084.6,4.667]
[1742820502305,4.79685,2084.7,2084.4,6.7638172]
[1742820502481,4.79716,2084.6,2084.4,4.667]
[1742820503200,4.79716,2084.6,2084.2,10.36816]
[1742820503388,4.79716,2084.6,2084.3,9.46476]
[1742820503893,4.79716,2084.6,2084.3,4.667]
[1742820504304,14.6819,2084.8,2084.4,4.79746]
[1742820504604,9.59392,2084.7,2084.3,9.46475]
[1742820504770,9.59392,2084.7,2084.4,1.503515]
[1742820505497,4.79687,2084.7,2084.4,1.503515]
[1742820505800,4.79703,2084.7,2084.4,1.503515]
[1742820506003,4.79703,2084.7,2084.5,0.7701]
[1742820506601,9.09,2084.8,2084.5,0.7701]
[1742820506772,13.8867,2084.8,2084.5,5.56733]
[1742820507497,13.8867,2084.8,2084.5,0.7701]
[1742820507999,9.09,2084.8,2084.5,5.56724]
[1742820508173,9.09,2084.8,2084.5,6.7410155]
[1742820508574,3.0,2084.8,2084.5,6.7410155]
[1742820510406,7.79664,2084.8,2084.5,6.7410155]
[1742820510596,7.79664,2084.8,2084.5,5.56724]
[1742820513606,3.0,2084.8,2084.5,5.56722]
[1742820513781,4.79692,2084.7,2084.5,0.7701]
[1742820515606,4.79708,2084.6,2084.3,4.7977]
[1742820515809,4.79708,2084.6,2084.5,4.665]
[1742820516678,4.79692,2084.7,2084.5,4.665]
[1742820516880,9.59393,2084.7,2084.5,4.665]
[1742820518425,4.79708,2084.6,2084.5,4.665]
[1742820518580,9.59435,2084.6,2084.2,5.56048]
[1742820518776,9.59435,2084.6,2084.3,4.665]
[1742820518777,10.38615,2084.6,2084.3,4.665]
[1742820518987,4.79746,2084.5,2084.3,4.665]
[1742820519191,4.79754,2084.4,2084.3,4.665]
[1742820519589,4.79754,2084.4,2084.2,0.556048]
[1742820519798,4.79754,2084.4,2084.3,4.665]
[1742820526334,4.79754,2084.4,2084.3,5.64260397]
[1742820528927,7.79754,2084.4,2084.3,0.97760397]
[1742820529133,4.79802,2084.2,2084.0,5.4266]
[1742820530007,4.79813,2084.2,2084.0,5.4266]
[1742820530229,3.0,2084.4,2084.0,6.449139]
[1742820530230,9.59565,2084.3,2084.0,6.449139]
[1742820530530,9.59572,2084.3,2084.0,6.449139]
[1742820530726,9.59573,2084.3,2084.0,6.449139]
[1742820531227,4.79778,2084.3,2084.0,6.449139]
[1742820531841,9.59573,2084.3,2084.0,6.449139]
[1742820532039,4.79778,2084.3,2084.0,5.4266]
[1742820532243,6.45069262,2084.5,2084.3,4.79774]
[1742820532244,6.09,2084.5,2084.3,4.79774]
[1742820532410,6.09,2084.5,2084.3,0.7897]
[1742820532743,6.09,2084.5,2084.4,4.664]
[1742820532940,6.09,2084.5,2084.4,5.689138]
[1742820533141,6.09,2084.5,2084.4,10.486678]
[1742820533443,6.09,2084.5,2084.4,5.689138]
[1742820533740,6.09,2084.5,2084.4,4.664]
[1742820537954,4.79709,2084.6,2084.4,4.664]
[1742820538843,4.79731,2084.5,2084.1,5.59447]
[1742820539041,4.79764,2084.4,2084.2,4.663]
[1742820540460,4.79735,2084.5,2084.2,9.46098]
[1742820540610,4.79735,2084.5,2084.2,8.70525]
[1742820540809,9.59435,2084.6,2084.2,13.50324]
[1742820541009,4.79733,2084.5,2084.2,13.50324]
[1742820541324,4.79733,2084.5,2084.2,8.70525]
[1742820541523,4.7974,2084.5,2084.2,8.70525]
[1742820541710,4.79733,2084.5,2084.2,13.50313]
[1742820541905,3.0,2084.7,2084.4,0.8046]
[1742820542110,7.79688,2084.7,2084.4,5.60206]
[1742820542428,7.79688,2084.7,2084.4,0.8046]
[1742820544122,10.88625,2085.0,2084.6,4.79698]
[1742820544316,10.88625,2085.0,2084.7,4.663]
[1742820544519,7.557355,2085.0,2084.7,4.663]
[1742820544816,6.09,2085.0,2084.8,4.79649]
[1742820545038,3.0,2085.1,2084.7,10.23122]
[1742820545234,7.79605,2085.1,2084.7,10.23122]
[1742820545844,12.59216,2085.1,2084.7,10.23122]
[1742820546225,7.79605,2085.1,2084.7,15.02792]
[1742820546442,7.79605,2085.1,2084.8,4.79661]
[1742820548147,12.59217,2085.1,2084.7,10.23108]
[1742820548312,4.79617,2085.0,2084.7,10.23108]
[1742820549224,7.79599,2085.1,2084.7,10.23108]
[1742820550243,7.79599,2085.1,2084.7,15.02782]
[1742820550460,7.79599,2085.1,2084.7,16.530572]
[1742820550763,7.79599,2085.1,2084.7,11.733862]
[1742820551121,3.0,2085.1,2084.7,11.733862]
[1742820551465,4.79576,2085.2,2084.7,11.733862]
[1742820551618,7.79576,2085.2,2084.8,4.79652]
[1742820551824,7.79576,2085.2,2084.9,1.6530382]
[1742820553251,3.0,2085.2,2084.7,5.4344]
[1742820553543,4.79635,2085.0,2084.7,5.4344]
[1742820554348,4.7963,2085.0,2084.7,5.4344]
[1742820554547,9.59266,2085.0,2084.7,5.4344]
[1742820554943,5.62364,2084.9,2084.5,4.79715]
[1742820555160,5.62363,2084.9,2084.6,4.661]
[1742820555517,4.79653,2084.9,2084.6,9.45806]
[1742820555945,4.79653,2084.9,2084.6,4.661]
[1742820556114,9.5931,2084.9,2084.6,4.661]
[1742820556314,4.79698,2084.7,2084.3,4.79769]
[1742820556546,4.79698,2084.7,2084.4,4.66]
[1742820557049,9.59399,2084.7,2084.4,4.66]
[1742820557418,4.79698,2084.7,2084.4,4.66]
[1742820558066,4.79663,2084.8,2084.5,4.79723]
[1742820558345,4.7964,2084.9,2084.5,6.6629266]
[1742820558564,9.59299,2084.9,2084.5,6.6629266]
[1742820558889,4.79662,2084.8,2084.5,6.6629266]
[1742820559017,4.79662,2084.8,2084.5,1.8657766]
[1742820559419,4.7964,2084.9,2084.5,1.8657766]
[1742820559619,4.7967,2084.8,2084.5,6.6629366]
[1742820560152,4.7964,2084.9,2084.5,1.8657766]
[1742820560346,4.7964,2084.9,2084.6,0.42469864]
[1742820560652,4.7967,2084.8,2084.6,0.42469864]
[1742820560850,4.7964,2084.9,2084.6,0.42469864]
[1742820561824,4.7967,2084.8,2084.6,0.42469864]
[1742820562699,9.59297,2084.9,2084.6,0.42469864]
[1742820562881,4.79664,2084.8,2084.6,0.42469864]
[1742820563084,9.59342,2084.8,2084.6,0.42469864]
[1742820563262,4.79642,2084.9,2084.6,6.01116864]
[1742820563467,4.79642,2084.9,2084.6,1.21409864]
[1742820563681,4.79642,2084.9,2084.6,0.42469864]
[1742820563901,4.7967,2084.8,2084.6,0.42469864]
[1742820564789,4.79685,2084.7,2084.6,0.42469864]
[1742820565195,4.7967,2084.8,2084.6,0.42469864]
[1742820565506,4.79685,2084.7,2084.6,0.42469864]
[1742820567402,6.09,2084.7,2084.6,0.42469864]
[1742820570656,10.88685,2084.7,2084.6,0.42469864]
[1742820570857,6.09,2084.7,2084.6,0.42469864]
[1742820573097,10.88642,2084.9,2084.6,0.42469864]
[1742820573259,12.53148,2084.9,2084.6,5.22167864]
[1742820573459,6.09,2084.9,2084.6,0.42469864]
[1742820573689,6.09,2084.9,2084.7,4.79678]
[1742820575564,6.09,2084.9,2084.7,5.62828]
[1742820576764,6.09,2084.9,2084.8,4.79662]
[1742820577071,9.59177,2085.2,2084.8,4.79654]
[1742820577268,4.79586,2085.2,2084.9,4.658]
[1742820578393,4.79586,2085.2,2084.9,9.45438]
[1742820579104,0.8132,2085.2,2084.7,5.62832]
[1742820579274,4.79606,2085.1,2084.8,4.658]
[1742820579466,9.59217,2085.1,2084.8,4.658]
[1742820579665,4.79606,2085.1,2084.8,4.658]
[1742820579976,0.8132,2085.0,2084.7,9.45477]
[1742820580171,4.79594,2085.1,2084.7,9.45477]
[1742820580377,4.79594,2085.1,2084.7,14.25146]
[1742820580696,4.79594,2085.1,2084.7,9.45471]
[1742820581196,9.59204,2085.1,2084.7,10.99783586]
[1742820581802,15.68204,2085.1,2084.7,10.99783586]
[1742820582465,10.88594,2085.1,2084.7,10.99783586]
[1742820582670,10.88594,2085.1,2084.8,4.79654]
[1742820583196,6.09,2085.1,2084.9,4.79617]
[1742820583396,6.09,2085.1,2084.9,5.97394959]
[1742820584991,6.09,2085.1,2084.9,1.17777959]
[1742820586879,6.09,2085.1,2084.8,10.37348]
[1742820587079,6.09,2085.1,2084.8,5.57699]
[1742820587479,6.09,2085.1,2084.8,10.37352]
[1742820587679,5.55342,2085.2,2084.8,5.57699]
[1742820588080,5.55342,2085.2,2084.8,5.57697]
[1742820588279,5.55342,2085.2,2084.9,4.79637]
[1742820588481,3.7577,2085.2,2084.9,4.7963]
[1742820588797,10.88549,2085.3,2085.0,4.79606]
[1742820589801,15.68114,2085.3,2084.9,4.79628]
[1742820589971,4.79576,2085.2,2084.9,4.79628]
[1742820590171,4.79576,2085.2,2084.9,6.57575853]
[1742820594184,15.68111,2085.3,2084.9,6.57570853]
[1742820594386,15.68113,2085.3,2084.9,6.57570853]
[1742820594908,4.79572,2085.2,2084.9,4.79623]
[1742820595087,4.79572,2085.2,2084.8,4.79654]
[1742820595282,5.58972,2085.2,2084.8,9.593]
[1742820595680,10.38559,2085.2,2084.8,4.79646]
[1742820595880,0.794,2085.2,2084.7,9.45481]
[1742820596092,4.79608,2085.1,2084.7,11.00035986]
[1742820596427,4.79608,2085.1,2084.7,9.45472]
[1742820596910,4.79623,2085.0,2084.8,4.656]
[1742820597211,4.79647,2084.9,2084.8,4.656]
[1742820597999,9.59255,2085.0,2084.8,4.656]
[1742820598706,0.7819,2084.9,2084.8,4.656]
[1742820598882,4.79685,2084.7,2084.6,0.42469864]
[1742820599085,5.57875,2084.7,2084.6,5.07969864]
[1742820600431,6.09,2084.8,2084.6,5.07969864]
[1742820600852,10.88664,2084.8,2084.6,5.07969864]
[1742820601715,4.79685,2084.7,2084.6,5.07969864]
[1742820603233,7.270389,2084.7,2084.6,0.42469864]
[1742820603948,10.270389,2084.7,2084.6,0.42469864]
[1742820604503,16.360389,2084.7,2084.6,0.42469864]
[1742820604701,16.910389,2084.7,2084.6,0.42469864]
[1742820605002,16.360389,2084.7,2084.6,0.42469864]
[1742820609336,14.71385,2084.7,2084.6,0.42469864]
[1742820609909,13.88685,2084.7,2084.6,0.42469864]
[1742820610110,6.09,2084.7,2084.6,0.42469864]
[1742820610436,9.09,2084.7,2084.6,0.42469864]
[1742820611029,13.88685,2084.7,2084.6,0.42469864]
[1742820611421,14.63815,2084.7,2084.6,0.42469864]
[1742820611847,13.88685,2084.7,2084.6,0.42469864]
[1742820612437,9.09,2084.7,2084.6,0.42469864]
[1742820612613,9.09,2084.7,2084.6,2.07072749]
[1742820613133,3.0,2084.7,2084.6,2.07072749]
[1742820613336,3.0,2084.7,2084.6,6.86780749]
[1742820614047,3.0,2084.7,2084.6,2.07072749]
[1742820614214,4.79644,2084.9,2084.6,6.86780749]
[1742820614412,3.0,2084.8,2084.6,6.86780749]
[1742820614713,3.0,2084.9,2084.6,6.86769749]
[1742820614937,7.79651,2084.9,2084.6,6.86769749]
[1742820615245,0.8178,2085.1,2084.8,4.79647]
[1742820615441,4.79616,2085.0,2084.7,1.23455975]
[1742820615632,4.79616,2085.0,2084.7,6.03130975]
[1742820616411,9.59249,2085.0,2084.7,1.23455975]
[1742820616617,9.59249,2085.0,2084.6,5.22169864]
[1742820616817,4.79616,2085.0,2084.6,5.22162864]
[1742820617246,4.79616,2085.0,2084.7,4.79683]
[1742820618010,3.0,2085.2,2084.9,4.79639]
[1742820618215,7.79585,2085.2,2085.0,4.654]
[1742820619025,10.8855,2085.3,2085.0,4.654]
[1742820620127,10.8855,2085.3,2085.0,9.45012]
[1742820621445,6.09,2085.3,2085.0,4.654]
[1742820621654,6.09,2085.3,2085.1,6.6214099]
[1742820624654,0.7532,2085.7,2085.5,4.79482]
[1742820624854,4.79462,2085.7,2085.5,4.653]
[1742820626253,9.58935,2085.7,2085.5,4.653]
[1742820626552,4.79462,2085.7,2085.5,4.653]
[1742820627149,3.7532,2085.9,2085.5,6.859451]
[1742820627352,6.09,2086.0,2085.7,4.79449]
[1742820627651,3.0,2085.9,2085.6,4.79478]
[1742820627819,6.09,2086.0,2085.7,4.79443]
[1742820628024,3.0,2085.9,2085.7,9.58886]
[1742820628328,3.0,2086.0,2085.8,4.79432]
[1742820628543,3.0,2086.0,2085.9,4.652]
[1742820629448,4.79364,2086.1,2085.9,4.652]
[1742820630033,4.79348,2086.2,2085.9,9.44605]
[1742820630355,6.8939,2086.3,2085.9,9.44606]
[1742820630659,3.0,2086.2,2085.9,11.0991686]
[1742820630833,11.68718,2086.3,2085.9,11.0991686]
[1742820631554,7.79341,2086.2,2085.9,11.0991686]
[1742820631851,3.0,2086.2,2085.9,11.0991686]
[1742820632246,3.0,2086.2,2086.0,4.79381]
[1742820632555,3.0,2086.2,2086.0,0.86977875]
[1742820632856,7.79342,2086.2,2086.0,0.86977875]
[1742820636059,7.79342,2086.2,2085.9,11.0991386]
[1742820636358,3.0,2086.2,2085.9,11.0990686]
[1742820636560,4.79296,2086.4,2086.0,4.79385]
[1742820636858,4.79296,2086.4,2086.1,5.58015]
[1742820637736,4.79296,2086.4,2086.1,0.7866]
[1742820638142,4.79296,2086.4,2086.1,2.45452786]
[1742820638874,9.58607,2086.4,2086.1,2.45452786]
[1742820639430,4.79296,2086.4,2086.1,2.45452786]
[1742820639633,9.5861,2086.4,2086.1,2.45452786]
[1742820640135,4.79296,2086.4,2086.1,2.45452786]
[1742820640867,9.5861,2086.4,2086.1,2.45452786]
[1742820641262,4.79296,2086.4,2086.1,2.45452786]
[1742820642279,9.5861,2086.4,2086.1,2.45452786]
[1742820643998,4.79296,2086.4,2086.1,2.45452786]
[1742820644282,9.58611,2086.4,2086.1,2.45452786]
[1742820644441,4.79296,2086.4,2086.1,2.45452786]
[1742820644637,3.0,2086.4,2086.1,7.24813786]
[1742820644955,5.5736,2086.9,2086.4,0.7858]
[1742820645155,4.7921,2086.8,2086.5,4.648]
[1742820645880,3.0,2086.8,2086.5,9.44071]
[1742820646093,7.79211,2086.8,2086.5,9.44071]
[1742820646661,12.5843,2086.8,2086.5,4.648]
[1742820646857,7.79211,2086.8,2086.5,4.648]
[1742820647281,12.58433,2086.8,2086.5,4.648]
[1742820647464,4.79233,2086.7,2086.5,4.648]
[1742820647979,7.79211,2086.8,2086.5,4.648]
[1742820648779,7.79211,2086.8,2086.5,9.44067]
[1742820648954,3.0,2086.8,2086.5,9.44067]
[1742820649160,3.0,2086.8,2086.6,4.79243]
[1742820649357,3.0,2086.8,2086.5,9.44053]
[1742820649754,7.79204,2086.8,2086.5,4.648]
[1742820650085,7.79204,2086.8,2086.5,9.44071]
[1742820650386,7.79204,2086.8,2086.6,0.53688069]
[1742820650586,3.0,2086.8,2086.6,0.53688069]
[1742820651886,7.79203,2086.8,2086.6,0.53688069]
[1742820653092,12.58422,2086.8,2086.6,0.53688069]
[1742820653480,13.39262,2086.8,2086.6,0.53688069]
[1742820654090,4.79225,2086.7,2086.6,0.53688069]
[1742820656391,5.60065,2086.7,2086.6,0.53688069]
[1742820660393,5.60065,2086.7,2086.6,1.4749641]
[1742820661574,11.028099,2086.7,2086.6,1.4749641]
[1742820666299,8.60065,2086.7,2086.6,1.4749641]
[1742820667265,7.79225,2086.7,2086.6,1.4749641]
[1742820670396,7.79225,2086.7,2086.6,0.53688069]
[1742820670583,9.09965,2086.7,2086.6,0.53688069]
[1742820672795,15.18965,2086.7,2086.6,0.53688069]
[1742820673394,17.667,2086.7,2086.6,0.53688069]
[1742820674305,15.18965,2086.7,2086.6,0.53688069]